bitfinex/quotes_BTCUSD_20240718
["timestamp","ask_amount","ask_price","bid_price","bid_amount"]
[1721325653305,0.553576,63661.0,63660.0,0.023]
[1721325653515,0.08233,63661.0,63660.0,0.023]
[1721325653740,0.239412,63661.0,63660.0,0.023]
[1721325654185,0.239412,63661.0,63660.0,0.014]
[1721325654186,0.238412,63661.0,63660.0,0.014]
[1721325654403,0.07933,63661.0,63656.0,0.314185]
[1721325654614,0.08033,63661.0,63660.0,0.009]
[1721325655030,0.07933,63661.0,63658.0,0.157089]
[1721325655236,0.08033,63661.0,63660.0,0.012]
[1721325655951,0.237412,63661.0,63660.0,0.012]
[1721325656198,1.17651504,63661.0,63660.0,0.016]
[1721325656397,1.78932453,63661.0,63660.0,0.016]
[1721325656613,0.785507,63653.0,63652.0,0.04680565]
[1721325656845,0.1436,63651.0,63641.0,0.00085845]
[1721325657092,0.612185,63642.0,63641.0,0.00085845]
[1721325657719,0.1408,63642.0,63641.0,0.00085845]
[1721325657931,0.1416,63652.0,63645.0,0.314242]
[1721325658137,0.001,63651.0,63645.0,0.20132996]
[1721325658369,0.001,63651.0,63649.0,0.15711]
[1721325658604,0.1416,63652.0,63649.0,0.15711]
[1721325659258,0.157099,63654.0,63649.0,0.15711]
[1721325659731,0.001,63651.0,63649.0,0.16511]
[1721325660584,0.001,63651.0,63649.0,0.008]
[1721325660788,0.471327,63650.0,63649.0,0.008]
[1721325661018,0.471327,63650.0,63641.0,0.00085845]
[1721325661019,0.157122,63645.0,63641.0,0.00085845]
[1721325661224,0.157119,63646.0,63642.0,0.157128]
[1721325661433,0.157116,63647.0,63642.0,0.157128]
[1721325661690,0.157128,63642.0,63641.0,0.00085845]
[1721325661896,0.928742,63642.0,63641.0,0.00085845]
[1721325662144,1.39738074,63642.0,63641.0,0.00085845]
[1721325663213,1.242999,63642.0,63641.0,0.00085845]
[1721325663941,1.39738074,63642.0,63641.0,0.00085845]
[1721325664139,1.87937581,63642.0,63641.0,0.00085845]
[1721325664782,1.87637581,63642.0,63641.0,0.00085845]
[1721325665034,1.87137581,63642.0,63641.0,0.00085845]
[1721325665250,1.88337581,63642.0,63641.0,0.00085845]
[1721325665465,1.87637581,63642.0,63641.0,0.00085845]
[1721325666364,1.88737581,63642.0,63641.0,0.00085845]
[1721325666585,1.42838074,63642.0,63641.0,0.00085845]
[1721325666850,0.959742,63642.0,63641.0,0.00085845]
[1721325667112,1.273999,63642.0,63641.0,0.00085845]
[1721325667566,1.253999,63642.0,63641.0,0.00085845]
[1721325667782,1.267999,63642.0,63641.0,0.00085845]
[1721325667998,1.54778064,63642.0,63641.0,0.00085845]
[1721325668252,1.53678064,63642.0,63641.0,0.00085845]
[1721325668450,1.56278064,63642.0,63641.0,0.00085845]
[1721325668684,1.92703764,63642.0,63641.0,0.00085845]
[1721325668879,2.02703764,63642.0,63641.0,0.00085845]
[1721325669111,1.96303764,63642.0,63641.0,0.00085845]
[1721325669346,2.18973764,63642.0,63641.0,0.00085845]
[1721325670042,2.50399464,63642.0,63641.0,0.00085845]
[1721325671421,2.01433774,63642.0,63641.0,0.00085845]
[1721325671628,1.84863774,63642.0,63641.0,0.00085845]
[1721325671842,2.06433774,63642.0,63641.0,0.00085845]
[1721325672072,2.37859474,63642.0,63641.0,0.00085845]
[1721325672534,2.01433774,63642.0,63641.0,0.00085845]
[1721325672757,1.84863774,63642.0,63641.0,0.00085845]
[1721325672993,2.00298731,63642.0,63641.0,0.00085845]
[1721325675098,1.84863774,63642.0,63641.0,0.00085845]
[1721325675307,1.53438074,63642.0,63641.0,0.00085845]
[1721325677458,2.37859474,63642.0,63641.0,0.00085845]
[1721325677734,2.06433774,63642.0,63641.0,0.00085845]
[1721325677941,2.01433774,63642.0,63641.0,0.00085845]
[1721325678362,2.16868731,63642.0,63641.0,0.00085845]
[1721325679296,2.21868731,63642.0,63641.0,0.00085845]
[1721325679956,2.16868731,63642.0,63641.0,0.00085845]
[1721325680423,2.21868731,63642.0,63641.0,0.00085845]
[1721325680653,2.53294431,63642.0,63641.0,0.00085845]
[1721325681302,2.21868731,63642.0,63641.0,0.00085845]
[1721325681736,2.26161079,63642.0,63641.0,0.00085845]
[1721325683090,2.57586779,63642.0,63641.0,0.00085845]
[1721325683976,2.53294431,63642.0,63641.0,0.00085845]
[1721325684273,2.5758787,63642.0,63641.0,0.00085845]
[1721325684490,2.5758787,63642.0,63631.0,0.00015652]
[1721325684491,2.1274937,63642.0,63631.0,0.00015652]
[1721325684714,2.42366974,63632.0,63631.0,0.00015652]
[1721325684949,2.46660413,63632.0,63631.0,0.00015652]
[1721325685219,2.90391113,63632.0,63631.0,0.00015652]
[1721325685460,1.100403,63613.0,63612.0,0.0145842]
[1721325685676,1.25478474,63613.0,63612.0,0.0145842]
[1721325686106,0.0799,63623.0,63612.0,0.0145842]
[1721325686330,0.157198,63614.0,63613.0,0.1355]
[1721325687256,0.157194,63616.0,63613.0,0.1355]
[1721325687474,0.04913844,63625.0,63612.0,0.1737852]
[1721325687475,0.471601,63613.0,63612.0,0.0185842]
[1721325688801,0.471601,63613.0,63612.0,0.0145842]
[1721325688802,0.786002,63613.0,63612.0,0.0145842]
[1721325689249,0.787002,63613.0,63612.0,0.0145842]
[1721325689780,0.788002,63613.0,63612.0,0.0145842]
[1721325690458,0.8983403,63613.0,63612.0,0.0145842]
[1721325691117,1.2127413,63613.0,63612.0,0.0145842]
[1721325691789,1.102403,63613.0,63612.0,0.0145842]
[1721325692244,1.40118474,63613.0,63612.0,0.0145842]
[1721325693365,1.71558574,63613.0,63612.0,0.0145842]
[1721325693577,1.40118474,63613.0,63612.0,0.0145842]
[1721325694726,1.71558574,63613.0,63612.0,0.0145842]
[1721325694944,1.86993531,63613.0,63612.0,0.0145842]
[1721325695378,1.55553431,63613.0,63612.0,0.0145842]
[1721325696479,1.40118474,63613.0,63612.0,0.0145842]
[1721325697125,1.71558574,63613.0,63612.0,0.0145842]
[1721325697378,2.03128574,63613.0,63612.0,0.0145842]
[1721325697590,2.05589272,63613.0,63612.0,0.0145842]
[1721325697811,2.04685975,63613.0,63612.0,0.0145842]
[1721325698090,1.96993531,63613.0,63612.0,0.0145842]
[1721325698272,1.96893531,63613.0,63612.0,0.0145842]
[1721325698485,1.97193531,63613.0,63612.0,0.0145842]
[1721325698732,1.97093531,63613.0,63612.0,0.0145842]
[1721325699199,2.03493531,63613.0,63612.0,0.0145842]
[1721325699670,1.98493531,63613.0,63612.0,0.0145842]
[1721325699887,1.99593531,63613.0,63612.0,0.0145842]
[1721325700079,1.96793531,63613.0,63612.0,0.0145842]
[1721325700292,1.98193531,63613.0,63612.0,0.0145842]
[1721325700723,1.96793531,63613.0,63612.0,0.0145842]
[1721325700929,1.98193531,63613.0,63612.0,0.0145842]
[1721325701372,1.96793531,63613.0,63612.0,0.0145842]
[1721325701585,1.98193531,63613.0,63612.0,0.0145842]
[1721325702054,1.99593531,63613.0,63612.0,0.0145842]
[1721325702720,2.00993531,63613.0,63612.0,0.0145842]
[1721325702980,0.028,63613.0,63612.0,0.0145842]
[1721325703199,0.028,63613.0,63612.0,0.1717872]
[1721325703200,0.042,63613.0,63612.0,0.1717872]
[1721325703428,0.042,63613.0,63612.0,0.8771992]
[1721325703655,0.46304871,63630.0,63612.0,0.8771992]
[1721325703656,0.46304871,63629.0,63612.0,0.13806336]
[1721325703907,0.157174,63624.0,63614.0,0.07717479]
[1721325704147,0.04934088,63625.0,63624.0,0.157173]
[1721325704390,0.04934088,63625.0,63624.0,0.537319]
[1721325704617,0.314284,63637.0,63632.0,0.157153]
[1721325704618,0.157142,63637.0,63632.0,0.157153]
[1721325704842,0.157142,63637.0,63631.0,0.157154]
[1721325704843,0.157144,63636.0,63631.0,0.157154]
[1721325705062,0.157147,63635.0,63631.0,0.157154]
[1721325705292,0.314301,63634.0,63625.0,0.04687662]
[1721325705510,0.157166,63627.0,63624.0,0.0658]
[1721325705754,0.001,63625.0,63624.0,0.225973]
[1721325706266,0.314321,63630.0,63624.0,0.0658]
[1721325706267,0.157166,63627.0,63624.0,0.0658]
[1721325706972,0.15717,63625.0,63624.0,0.0658]
[1721325707189,0.157175,63623.0,63622.0,0.4726]
[1721325707433,0.1821,63629.0,63619.0,0.0662]
[1721325707434,0.157183,63620.0,63619.0,0.0662]
[1721325707661,0.15718,63622.0,63619.0,0.0662]
[1721325709295,0.15718,63622.0,63619.0,0.0742]
[1721325709530,0.15718,63622.0,63619.0,0.0842]
[1721325709980,0.15718,63621.0,63619.0,0.0842]
[1721325710321,0.31435,63624.0,63619.0,0.0842]
[1721325710409,0.157183,63620.0,63619.0,0.0842]
[1721325710852,0.157183,63620.0,63619.0,0.0762]
[1721325711082,0.157183,63620.0,63619.0,0.016]
[1721325711302,0.157183,63620.0,63619.0,0.024]
[1721325711303,0.471549,63620.0,63619.0,0.024]
[1721325711519,0.785915,63620.0,63619.0,0.024]
[1721325711743,0.785915,63620.0,63619.0,0.009]
[1721325711979,0.786915,63620.0,63619.0,0.018]
[1721325712432,0.786915,63620.0,63619.0,0.009]
[1721325712661,1.101281,63620.0,63619.0,0.009]
[1721325713112,1.100281,63620.0,63619.0,0.003]
[1721325714485,1.2103091,63620.0,63619.0,0.003]
[1721325715180,1.100281,63620.0,63619.0,0.006]
[1721325716100,1.100281,63620.0,63619.0,0.003]
[1721325716333,1.100281,63620.0,63619.0,0.005]
[1721325717063,0.785915,63620.0,63619.0,0.005]
[1721325717304,0.471549,63620.0,63619.0,0.005]
[1721325717530,0.157157,63631.0,63627.0,0.157165]
[1721325717757,0.157151,63633.0,63629.0,0.15716]
[1721325718487,0.314293,63635.0,63629.0,0.15716]
[1721325718705,0.157144,63636.0,63632.0,0.157152]
[1721325718961,0.314276,63639.0,63633.0,0.1462]
[1721325719197,0.157148,63635.0,63633.0,0.1462]
[1721325719877,0.157148,63634.0,63633.0,0.1462]
[1721325720575,0.785792,63630.0,63629.0,0.002]
[1721325720795,0.157158,63630.0,63629.0,0.002]
[1721325721247,0.314304,63633.0,63629.0,0.001]
[1721325721248,0.157156,63631.0,63629.0,0.001]
[1721325721494,0.157158,63630.0,63627.0,0.157165]
[1721325721729,0.314268,63640.0,63634.0,0.0601]
[1721325721977,0.157139,63638.0,63634.0,0.217248]
[1721325722211,0.157143,63636.0,63634.0,0.0601]
[1721325722435,0.05,63657.0,63634.0,0.0601]
[1721325722436,0.31423,63648.0,63639.0,0.0799]
[1721325722662,0.31423,63648.0,63640.0,0.157133]
[1721325722663,0.157125,63644.0,63640.0,0.157133]
[1721325722893,0.157126,63643.0,63639.0,0.0799]
[1721325723144,0.157129,63642.0,63639.0,0.0799]
[1721325723371,0.157125,63644.0,63639.0,0.0799]
[1721325723591,0.157121,63645.0,63641.0,0.15713]
[1721325723842,0.314212,63652.0,63641.0,0.314262]
[1721325723843,0.314222,63650.0,63641.0,0.314262]
[1721325724089,0.314222,63650.0,63642.0,0.157126]
[1721325724315,0.157104,63652.0,63643.0,0.00314236]
[1721325724548,0.04965998,63653.0,63643.0,0.00314236]
[1721325724549,0.04965998,63653.0,63650.0,0.157107]
[1721325724784,0.04965998,63653.0,63644.0,0.0601]
[1721325724785,0.20676298,63653.0,63648.0,0.157111]
[1721325725006,0.314195,63655.0,63648.0,0.157111]
[1721325725007,0.157104,63652.0,63648.0,0.157111]
[1721325725461,0.314195,63655.0,63647.0,0.314232]
[1721325725462,0.157104,63653.0,63649.0,0.15711]
[1721325725723,0.001,63652.0,63651.0,0.551219]
[1721325726169,0.157094,63656.0,63652.0,0.157103]
[1721325726394,0.157094,63656.0,63651.0,0.394113]
[1721325726395,0.001,63652.0,63651.0,0.237005]
[1721325726625,0.001,63652.0,63651.0,0.551218]
[1721325726855,0.001,63652.0,63651.0,0.9094959]
[1721325727086,0.001,63652.0,63651.0,1.37809064]
[1721325727319,0.001,63652.0,63651.0,1.44299064]
[1721325727551,0.001,63652.0,63651.0,1.78020364]
[1721325727784,0.00083,63661.0,63660.0,0.785422]
[1721325728012,0.00083,63661.0,63660.0,1.07980374]
[1721325728240,0.00083,63661.0,63660.0,1.0954645]
[1721325729557,0.00083,63661.0,63660.0,1.4096335]
[1721325729757,0.00183,63661.0,63660.0,1.4206335]
[1721325729991,0.00183,63661.0,63660.0,1.4646984]
[1721325730481,0.00183,63661.0,63660.0,1.1505294]
[1721325731196,0.00183,63661.0,63660.0,1.4646984]
[1721325731655,0.00183,63661.0,63660.0,1.4536984]
[1721325731656,0.00083,63661.0,63660.0,1.4536984]
[1721325731890,0.00183,63661.0,63660.0,1.4876984]
[1721325732392,0.00083,63661.0,63660.0,1.8048674]
[1721325732634,0.04974932,63673.0,63672.0,0.924972]
[1721325732864,0.159824,63682.0,63677.0,0.15704]
[1721325732865,0.002794,63681.0,63677.0,0.15704]
[1721325733103,0.17717479,63687.0,63672.0,0.6238515]
[1721325733104,0.002794,63679.0,63678.0,0.471117]
[1721325733575,0.157025,63684.0,63679.0,0.471112]
[1721325733576,0.002794,63684.0,63679.0,0.471112]
[1721325733798,0.002794,63684.0,63679.0,0.21676266]
[1721325733799,0.157028,63683.0,63679.0,0.21676266]
[1721325734023,0.002794,63682.0,63679.0,0.05972566]
[1721325734248,0.157033,63681.0,63679.0,0.05972566]
[1721325734470,0.157026,63684.0,63679.0,0.21676266]
[1721325734696,0.159821,63683.0,63679.0,0.21676266]
[1721325734920,0.002794,63682.0,63679.0,0.21676266]
[1721325735144,0.002794,63682.0,63679.0,0.53083766]
[1721325735367,0.002794,63683.0,63679.0,0.53083766]
[1721325735587,0.07717479,63687.0,63679.0,0.53083766]
[1721325735588,0.159819,63684.0,63679.0,0.53083766]
[1721325735835,0.00883,63680.0,63679.0,0.21776266]
[1721325736062,0.00883,63680.0,63679.0,0.21876266]
[1721325736533,0.00083,63680.0,63679.0,0.21776266]
[1721325736763,0.00183,63680.0,63679.0,0.22976266]
[1721325737267,0.00183,63680.0,63679.0,0.70135989]
[1721325737507,0.00183,63680.0,63679.0,1.01543489]
[1721325737741,0.011134,63691.0,63689.0,0.157012]
[1721325737973,0.011134,63691.0,63690.0,0.02144817]
[1721325738215,0.00834,63691.0,63690.0,0.17845817]
[1721325738452,0.00834,63691.0,63690.0,0.02144817]
[1721325738689,0.00834,63691.0,63689.0,0.01566076]
[1721325738690,0.471031,63690.0,63689.0,0.01566076]
[1721325738930,1.101867,63690.0,63689.0,0.01566076]
[1721325739160,1.174373,63690.0,63689.0,0.01666076]
[1721325739627,1.174373,63690.0,63689.0,0.01566076]
[1721325740606,1.174373,63690.0,63689.0,0.01666076]
[1721325741610,1.70937574,63690.0,63689.0,0.01666076]
[1721325741852,1.70937574,63690.0,63689.0,0.001]
[1721325741853,2.31131204,63690.0,63689.0,0.001]
[1721325742077,2.31131204,63690.0,63689.0,0.002]
[1721325742078,2.31731204,63690.0,63689.0,0.002]
[1721325742586,2.48291204,63690.0,63689.0,0.002]
[1721325742827,1.243632,63675.0,63674.0,0.01566076]
[1721325743512,0.785237,63675.0,63674.0,0.01566076]
[1721325744167,0.157047,63675.0,63674.0,0.01566076]
[1721325744390,0.471142,63675.0,63674.0,0.01566076]
[1721325744910,0.471142,63675.0,63674.0,0.02066076]
[1721325744911,1.099332,63675.0,63674.0,0.02066076]
[1721325745579,1.100332,63675.0,63674.0,0.02666076]
[1721325747156,1.100332,63675.0,63674.0,0.011]
[1721325747157,1.574427,63675.0,63674.0,0.011]
[1721325747620,1.574427,63675.0,63674.0,0.02666076]
[1721325748098,1.574427,63675.0,63674.0,0.011]
[1721325748342,1.574427,63675.0,63674.0,0.006]
[1721325748564,0.157079,63662.0,63661.0,0.0791]
[1721325748768,0.31415901,63662.0,63661.0,0.09476076]
[1721325749024,0.47123801,63662.0,63661.0,0.09476076]
[1721325749278,0.47123801,63662.0,63661.0,0.01566076]
[1721325749527,0.78539701,63662.0,63661.0,0.01566076]
[1721325750031,0.78539701,63662.0,63661.0,0.01766076]
[1721325750490,1.16465601,63662.0,63661.0,0.01766076]
[1721325750719,1.16465601,63662.0,63661.0,0.002]
[1721325750720,1.64691785,63662.0,63661.0,0.002]
[1721325751234,1.96107685,63662.0,63661.0,0.002]
[1721325751454,1.81319675,63662.0,63661.0,0.002]
[1721325751911,1.099728,63652.0,63651.0,0.01566076]
[1721325752407,1.81341774,63652.0,63651.0,0.01566076]
[1721325752651,1.81341774,63652.0,63634.0,0.0647]
[1721325752652,0.471438,63635.0,63634.0,0.0647]
[1721325752899,0.157146,63635.0,63634.0,0.08036076]
[1721325753126,0.157143,63637.0,63634.0,0.08036076]
[1721325753576,0.314274,63639.0,63634.0,0.08036076]
[1721325753577,0.157144,63636.0,63634.0,0.08036076]
[1721325754052,0.157146,63635.0,63634.0,0.01566076]
[1721325754724,0.471438,63635.0,63634.0,0.01566076]
[1721325755492,0.157146,63635.0,63634.0,0.01566076]
[1721325755714,0.158146,63635.0,63634.0,0.02266076]
[1721325756160,0.471438,63635.0,63634.0,0.02566076]
[1721325756349,0.471438,63635.0,63634.0,0.03266076]
[1721325756350,0.472438,63635.0,63634.0,0.03266076]
[1721325756661,0.001,63635.0,63634.0,0.03266076]
[1721325756885,0.001,63635.0,63634.0,0.03766076]
[1721325757353,0.001,63635.0,63634.0,0.02766076]
[1721325757585,0.158146,63635.0,63634.0,0.03166076]
[1721325757823,0.472438,63635.0,63634.0,0.03166076]
[1721325758059,0.78673,63635.0,63634.0,0.03166076]
[1721325758283,0.78673,63635.0,63634.0,0.01966076]
[1721325758284,0.78573,63635.0,63634.0,0.01966076]
[1721325758497,0.78573,63635.0,63634.0,0.02366076]
[1721325758944,0.78573,63635.0,63634.0,0.01966076]
[1721325759394,1.100022,63635.0,63634.0,0.008]
[1721325760322,1.100022,63635.0,63634.0,0.004]
[1721325760539,1.103022,63635.0,63634.0,0.004]
[1721325761220,0.157174,63624.0,63620.0,0.4726]
[1721325761531,0.314349,63624.0,63620.0,0.01566076]
[1721325761704,0.157173,63624.0,63620.0,0.17284276]
[1721325761932,0.314331,63628.0,63621.0,0.07717479]
[1721325762169,0.0499195,63633.0,63624.0,0.0819]
[1721325762398,0.0499195,63633.0,63625.0,0.22132459]
[1721325762621,0.0499195,63633.0,63631.0,0.157155]
[1721325762910,0.0499195,63633.0,63631.0,0.17281576]
[1721325763138,0.314286,63637.0,63631.0,0.17281576]
[1721325763351,0.157147,63635.0,63631.0,0.01566076]
[1721325763804,0.157147,63635.0,63631.0,0.17281576]
[1721325764040,0.157153,63632.0,63631.0,0.01966076]
[1721325764270,0.47146,63632.0,63631.0,0.01966076]
[1721325764506,0.785767,63632.0,63631.0,0.01966076]
[1721325765210,1.100074,63632.0,63631.0,0.02166076]
[1721325765437,1.100074,63632.0,63631.0,0.01966076]
[1721325765667,1.100074,63632.0,63631.0,0.02066076]
[1721325765913,1.100074,63632.0,63631.0,0.01566076]
[1721325766136,1.100074,63632.0,63631.0,0.01866076]
[1721325766629,1.100074,63632.0,63631.0,0.01666076]
[1721325766853,1.100074,63632.0,63631.0,0.01766076]
[1721325767812,1.90321231,63632.0,63631.0,0.01766076]
[1721325768111,1.90321231,63632.0,63631.0,0.002]
[1721325768112,1.74886274,63632.0,63631.0,0.002]
[1721325768336,2.17316974,63632.0,63631.0,0.002]
[1721325769011,2.17316974,63632.0,63631.0,0.001]
[1721325769259,2.14309252,63632.0,63631.0,0.001]
[1721325769479,2.15009252,63632.0,63631.0,0.001]
[1721325769719,2.15009252,63632.0,63631.0,0.002]
[1721325769907,2.16409252,63632.0,63631.0,0.002]
[1721325770411,1.81586274,63632.0,63631.0,0.001913]
[1721325770598,1.83069274,63632.0,63631.0,0.002913]
[1721325770858,1.82369274,63632.0,63631.0,0.001913]
[1721325771078,1.87369274,63632.0,63631.0,0.001913]
[1721325771298,2.03504231,63632.0,63631.0,0.002913]
[1721325771519,2.03504231,63632.0,63631.0,0.001913]
[1721325772053,2.02804231,63632.0,63631.0,0.001913]
[1721325772501,1.97804231,63632.0,63631.0,0.001913]
[1721325772729,2.03504231,63632.0,63631.0,0.002913]
[1721325772917,1.97104231,63632.0,63631.0,0.001913]
[1721325773179,1.97104231,63632.0,63631.0,0.002913]
[1721325773180,1.98504231,63632.0,63631.0,0.002913]
[1721325773394,2.03504231,63632.0,63631.0,0.002913]
[1721325774063,1.98504231,63632.0,63631.0,0.002913]
[1721325775043,1.96404231,63632.0,63631.0,0.000913]
[1721325775289,2.01404231,63632.0,63631.0,0.000913]
[1721325775537,2.51494931,63632.0,63631.0,0.002913]
[1721325775981,2.51494931,63632.0,63631.0,0.000913]
[1721325775982,2.17964231,63632.0,63631.0,0.000913]
[1721325776213,2.19364231,63632.0,63631.0,0.001913]
[1721325776444,2.14364231,63632.0,63631.0,0.001913]
[1721325776690,1.98929274,63632.0,63631.0,0.001913]
[1721325777165,1.82369274,63632.0,63631.0,0.001913]
[1721325777845,1.83069274,63632.0,63631.0,0.002913]
[1721325778789,1.80969274,63632.0,63631.0,0.000913]
[1721325779043,1.83069274,63632.0,63631.0,0.002913]
[1721325779773,1.37628574,63632.0,63631.0,0.002913]
[1721325780723,1.36928574,63632.0,63631.0,0.001913]
[1721325780942,1.37528574,63632.0,63631.0,0.002913]
[1721325781400,1.36128574,63632.0,63631.0,0.001913]
[1721325781618,1.37428574,63632.0,63631.0,0.002913]
[1721325783744,1.84045131,63632.0,63631.0,0.002913]
[1721325783984,1.92035131,63632.0,63631.0,0.002913]
[1721325784449,1.76849274,63632.0,63631.0,0.002913]
[1721325784705,1.75549274,63632.0,63631.0,0.001913]
[1721325784914,1.75549274,63632.0,63631.0,0.000913]
[1721325784915,1.74949274,63632.0,63631.0,0.000913]
[1721325785171,0.900597,63632.0,63631.0,0.001913]
[1721325785393,0.02083,63632.0,63631.0,0.081113]
[1721325785649,0.00683,63632.0,63631.0,0.080113]
[1721325785895,0.01483,63632.0,63631.0,0.080113]
[1721325786136,0.01483,63632.0,63631.0,0.3288062]
[1721325786365,0.01483,63632.0,63631.0,0.9574302]
[1721325787437,0.00383,63632.0,63631.0,0.9574302]
[1721325787636,0.00383,63632.0,63631.0,1.87196245]
[1721325787836,0.04908685,63644.0,63643.0,0.92633]
[1721325788074,0.157104,63652.0,63646.0,0.314236]
[1721325788236,0.157104,63652.0,63647.0,0.157116]
[1721325788408,0.157105,63652.0,63647.0,0.157116]
[1721325789419,0.157107,63651.0,63647.0,0.157116]
[1721325790101,0.157107,63651.0,63647.0,0.1869532]
[1721325790327,0.04918032,63656.0,63647.0,0.1869532]
[1721325790328,0.04918032,63656.0,63655.0,0.157096]
[1721325790550,0.04918032,63656.0,63655.0,0.86637524]
[1721325790772,1e-08,63662.0,63659.0,0.157084]
[1721325791001,1e-08,63662.0,63660.0,0.03567587]
[1721325791227,1e-08,63662.0,63661.0,0.78541]
[1721325791706,1e-08,63662.0,63661.0,0.92701]
[1721325791934,1e-08,63662.0,63661.0,0.298682]
[1721325792215,1e-08,63662.0,63661.0,0.612846]
[1721325792426,1e-08,63662.0,63661.0,1.41855574]
[1721325793355,1e-08,63662.0,63661.0,0.92701]
[1721325794108,0.00100001,63662.0,63661.0,0.93301]
[1721325794344,0.00100001,63662.0,63661.0,0.632846]
[1721325794598,1e-08,63662.0,63661.0,0.626846]
[1721325794845,1e-08,63662.0,63661.0,0.640846]
[1721325795059,0.00100001,63662.0,63661.0,0.042]
[1721325795278,0.47223801,63662.0,63661.0,0.042]
[1721325795499,0.47123801,63662.0,63661.0,0.028]
[1721325795753,1.10055601,63662.0,63661.0,0.034]
[1721325795985,1.10055601,63662.0,63661.0,0.006]
[1721325796446,1.71659675,63662.0,63661.0,0.006]
[1721325796947,1.71659675,63662.0,63661.0,0.008]
[1721325797221,1.81559675,63662.0,63661.0,0.008]
[1721325797431,1.81559675,63662.0,63661.0,0.012]
[1721325797661,1.81559675,63662.0,63661.0,0.016]
[1721325797889,1.81559675,63662.0,63661.0,0.004]
[1721325798115,1.81759675,63662.0,63661.0,0.004]
[1721325798327,1.97194632,63662.0,63661.0,0.004]
[1721325798869,1.86759675,63662.0,63661.0,0.004]
[1721325799128,2.34735575,63662.0,63661.0,0.004]
[1721325800085,2.34535575,63662.0,63661.0,0.004]
[1721325800558,0.157146,63635.0,63631.0,0.077213]
[1721325800787,0.47146,63632.0,63631.0,0.077213]
[1721325801011,0.47146,63632.0,63631.0,0.09280624]
[1721325801012,0.157153,63632.0,63631.0,0.09280624]
[1721325801475,0.785767,63632.0,63631.0,0.01650624]
[1721325802701,0.785767,63632.0,63631.0,0.02350624]
[1721325803832,0.786767,63632.0,63631.0,0.02950624]
[1721325804058,0.786767,63632.0,63631.0,0.02250624]
[1721325804287,0.785767,63632.0,63631.0,0.02050624]
[1721325804538,0.785767,63632.0,63631.0,0.02450624]
[1721325805930,1.100074,63632.0,63631.0,0.02450624]
[1721325806185,1.100074,63632.0,63631.0,0.008913]
[1721325807127,0.785767,63632.0,63631.0,0.008913]
[1721325807365,0.157144,63636.0,63632.0,0.221853]
[1721325807611,0.157148,63634.0,63633.0,0.0765]
[1721325807858,0.471445,63634.0,63633.0,0.0765]
[1721325809048,0.471445,63634.0,63633.0,0.0785]
[1721325810623,0.785742,63634.0,63633.0,0.002]
[1721325811307,0.314287,63637.0,63633.0,0.004]
[1721325811527,0.157148,63634.0,63633.0,0.004]
[1721325811759,0.157145,63636.0,63633.0,0.004]
[1721325811985,0.04968098,63648.0,63637.0,0.0781]
[1721325812209,0.157138,63638.0,63637.0,0.0781]
[1721325812431,0.157138,63638.0,63637.0,0.11060409]
[1721325812923,0.157137,63639.0,63637.0,0.11060409]
[1721325813152,0.31426,63642.0,63637.0,0.11060409]
[1721325813374,0.36391298,63648.0,63637.0,0.11060409]
[1721325813375,0.04968098,63648.0,63637.0,0.11060409]
[1721325813610,0.317031,63647.0,63640.0,0.157132]
[1721325813846,0.157124,63644.0,63640.0,0.17272524]
[1721325814538,0.008,63642.0,63640.0,0.17272524]
[1721325815017,0.04968098,63648.0,63647.0,0.157116]
[1721325815228,0.04968098,63648.0,63647.0,0.01559324]
[1721325815447,0.314201,63654.0,63647.0,0.01559324]
[1721325815672,0.157102,63653.0,63648.0,0.157113]
[1721325815896,0.002794,63652.0,63649.0,0.157111]
[1721325816133,0.002794,63655.0,63652.0,0.1357]
[1721325816350,0.157097,63655.0,63652.0,0.1357]
[1721325816612,0.15791001,63662.0,63657.0,0.15709]
[1721325816845,0.15790901,63662.0,63658.0,0.157087]
[1721325817075,0.157083,63661.0,63657.0,0.01559324]
[1721325817297,0.002794,63660.0,63657.0,0.17268424]
[1721325817821,0.002794,63660.0,63658.0,0.157089]
[1721325818046,0.001,63660.0,63658.0,0.157089]
[1721325818265,0.001,63660.0,63659.0,0.157086]
[1721325818512,0.001,63660.0,63657.0,0.32977324]
[1721325818720,0.001,63660.0,63658.0,0.157088]
[1721325819631,0.001,63660.0,63659.0,0.157086]
[1721325819854,0.00083001,63662.0,63659.0,0.157085]
[1721325820068,0.001,63660.0,63659.0,0.157085]
[1721325820510,0.00083001,63662.0,63659.0,0.157085]
[1721325820944,0.001,63660.0,63659.0,0.157085]
[1721325821432,0.001,63660.0,63659.0,0.927431]
[1721325821682,0.00083001,63662.0,63660.0,0.157083]
[1721325822353,0.00083001,63662.0,63659.0,0.456173]
[1721325822354,0.471267,63658.0,63657.0,0.01559324]
[1721325823032,0.785445,63658.0,63657.0,0.01559324]
[1721325823251,0.471267,63658.0,63657.0,0.01559324]
[1721325824584,0.471267,63658.0,63657.0,0.01759324]
[1721325824805,0.785445,63658.0,63657.0,0.01759324]
[1721325825534,0.785445,63658.0,63657.0,0.01859324]
[1721325826446,1.236123,63658.0,63657.0,0.01859324]
[1721325827165,1.336123,63658.0,63657.0,0.01859324]
[1721325827387,1.336123,63658.0,63657.0,0.01559324]
[1721325827643,1.336123,63658.0,63641.0,0.157129]
[1721325827644,0.157119,63646.0,63641.0,0.157129]
[1721325827866,0.157119,63646.0,63641.0,0.17272224]
[1721325828106,0.157121,63645.0,63641.0,0.01559324]
[1721325828357,0.157124,63644.0,63641.0,0.01559324]
[1721325828569,0.157123,63645.0,63641.0,0.01559324]
[1721325828811,0.157127,63643.0,63641.0,0.01559324]
[1721325829294,0.31424,63646.0,63641.0,0.01559324]
[1721325829295,0.471385,63642.0,63641.0,0.01559324]
[1721325829724,0.04903329,63654.0,63641.0,0.02559324]
[1721325829725,0.157127,63643.0,63641.0,0.02559324]
[1721325830163,0.471385,63642.0,63641.0,0.01559324]
[1721325830615,0.785642,63642.0,63641.0,0.02459324]